Workbook

Sheet 2020
A1: 2020年度新能源汽车推广应用补助资金清算审核车辆信息表
A2: 地区 | B2: 序号 | C2: 车辆生产企业 | D2: 车辆型号 | E2: 申报推广数 （辆） | F2: 申请补助标准 （万元） | G2: 申请清算资金 （万元） | H2: 核定推广数 （辆） | I2: 核定补助标准 （万元） | J2: 应清算补助资金 （万元） | K2: 按整车企业取整后补助资金（万元） | L2: 核减原因 | M2: 此前待扣回预拨资金（万元） | N2: 此次扣回预拨资金（万元） | O2: 扣回相应预拨资金后剩余资金（万元）
A3: 总计 | E3: =SUM(E4:E1559)/3 -> 42165 | G3: 100783.2451 | H3: 38099 | J3: 89658.7872 | K3: =SUM(K4:K1556)/2 -> 89660 | M3: =SUM(M4:M1556)/2 -> 529058 | N3: =SUM(N4:N1556)/2 -> 26621 | O3: =SUM(O4:O1556)/2 -> 63039
A4: 北京市 | B4: 合计 | E4: =SUM(E5:E138)/2 -> 3479 | G4: 5408.7458 | H4: 3232 | J4: 4927.0106 | K4: =SUM(K5:K116) -> 4927 | M4: =SUM(M5:M116) -> 0 | N4: =SUM(N5:N116) -> 0 | O4: =SUM(O5:O116) -> 4927
B5: 1 | C5: 北京北方华德尼奥普兰客车股份有限公司 | D5: 小计 | E5: =SUM(E6) -> 33 | G5: 267.3 | H5: 30 | J5: 243 | K5: =ROUND(J5,0) -> 243 | M5: 0 | N5: =M5 -> 0 | O5: =K5-N5 -> 243
D6: BFC6128GBEV5 | E6: 33 | F6: 8.1 | G6: =E6*F6 -> 267.3 | H6: 30 | I6: 8.1 | J6: =H6*I6 -> 243 | L6: 核减3辆，原因为：车辆注册登记信息有误,现场核查不通过
B7: 2 | C7: 北京奔驰汽车有限公司 | D7: 小计 | E7: =SUM(E8:E21) -> 679 | G7: 655.352 | H7: 662 | J7: 636.1595 | K7: =ROUND(J7,0) -> 636 | M7: 0 | N7: =M7 -> 0 | O7: =K7-N7 -> 636
D8: BJ6480LABEV | E8: 19 | F8: 1.008 | G8: =E8*F8 -> 19.152 | H8: 19 | I8: 1.008 | J8: =H8*I8 -> 19.152
D9: BJ6480LABEV | E9: 13 | F9: 1.12 | G9: 14.56 | H9: 12 | I9: 1.12 | J9: 13.44 | L9: 核减1辆，原因为：车辆注册登记信息有误
D10: BJ6480LABEV | E10: 147 | F10: 1.44 | G10: 211.68 | H10: 142 | I10: 1.44 | J10: 204.48 | L10: 核减5辆，原因为：车辆注册登记信息有误
D11: BJ6480LABEV | E11: 38 | F11: 1.6 | G11: 60.8 | H11: 38 | I11: 1.6 | J11: 60.8
D12: BJ6480LABEV1 | E12: 7 | F12: 1.008 | G12: 7.056 | H12: 7 | I12: 1.008 | J12: 7.056
D13: BJ6480LABEV1 | E13: 23 | F13: 1.44 | G13: 33.12 | H13: 22 | I13: 1.44 | J13: 31.68 | L13: 核减1辆，原因为：车辆注册登记信息有误
D14: BJ6480LABEV3 | E14: 3 | F14: 1.008 | G14: 3.024 | H14: 3 | I14: 1.008 | J14: 3.024
D15: BJ6480LABEV3 | E15: 13 | F15: 1.12 | G15: 14.56 | H15: 13 | I15: 1.12 | J15: 14.56
D16: BJ6480LABEV3 | E16: 55 | F16: 1.44 | G16: 79.2 | H16: 51 | I16: 1.44 | J16: 73.44 | L16: 核减4辆，原因为：车辆注册登记信息有误,需进一步核实后予以清算
D17: BJ6480LABEV3 | E17: 49 | F17: 1.6 | G17: 78.4 | H17: 48 | I17: 1.6 | J17: 76.8 | L17: 核减1辆，原因为：现场核查不通过
D18: BJ7205JLHEV6 | E18: 30 | F18: 0.2975 | G18: 8.925 | H18: 29 | I18: 0.2975 | J18: 8.6275 | L18: 核减1辆，原因为：车辆注册登记信息有误
D19: BJ7205JLHEV6 | E19: 26 | F19: 0.35 | G19: 9.1 | H19: 26 | I19: 0.35 | J19: 9.1
D20: BJ7205JLHEV6 | E20: 163 | F20: 0.425 | G20: 69.275 | H20: 160 | I20: 0.425 | J20: 68 | L20: 核减3辆，原因为：车辆注册登记信息有误
D21: BJ7205JLHEV6 | E21: 93 | F21: 0.5 | G21: 46.5 | H21: 92 | I21: 0.5 | J21: 46 | L21: 核减1辆，原因为：车辆注册登记信息有误
B22: 3 | C22: 北京华林特装车有限公司 | D22: 小计 | E22: =SUM(E23:E32) -> 95 | G22: 418.6324 | H22: 50 | J22: 251.6054 | K22: =ROUND(J22,0) -> 252 | M22: 0 | N22: =M22 -> 0 | O22: =K22-N22 -> 252
D23: HLT5041TYHEV | E23: 6 | F23: 2.1054 | G23: =E23*F23 -> 12.6324 | H23: 1 | I23: 2.1054 | J23: =H23*I23 -> 2.1054 | L23: 核减5辆，原因为：未按有关要求上传车辆运行数据
D24: HLT5100TCASHEV | E24: 29 | F24: 3.5 | G24: 101.5 | H24: 0 | I24: 0 | J24: 0 | L24: 核减29辆，原因为：未按有关要求上传车辆运行数据
D25: HLT5180GXEEV | E25: 2 | F25: 5 | G25: 10 | H25: 0 | I25: 0 | J25: 0 | L25: 核减2辆，原因为：未按有关要求上传车辆运行数据
D26: HLT5180TCAEV | E26: 12 | F26: 5 | G26: 60 | H26: 8 | I26: 5 | J26: 40 | L26: 核减4辆，原因为：未按有关要求上传车辆运行数据
D27: HLT5181GSSEV | E27: 2 | F27: 5 | G27: 10 | H27: 2 | I27: 5 | J27: 10
D28: HLT5181TXSEV | E28: 5 | F28: 5.5 | G28: 27.5 | H28: 5 | I28: 5.5 | J28: 27.5
D29: HLT5181ZYSEV | E29: 4 | F29: 5 | G29: 20 | H29: 0 | I29: 0 | J29: 0 | L29: 核减4辆，原因为：未按有关要求上传车辆运行数据
D30: HLT5182TXSEV | E30: 5 | F30: 5 | G30: 25 | H30: 5 | I30: 5 | J30: 25
D31: HLT5251ZXXEV | E31: 4 | F31: 5.5 | G31: 22 | H31: 4 | I31: 5.5 | J31: 22
D32: HLT5321GSSEV | E32: 26 | F32: 5 | G32: 130 | H32: 25 | I32: 5 | J32: 125 | L32: 核减1辆，原因为：未按有关要求上传车辆运行数据
B33: 4 | C33: 北京环卫集团环卫装备有限公司 | D33: 小计 | E33: =SUM(E34) -> 2 | G33: 4.2108 | H33: 2 | J33: 4.2108 | K33: =ROUND(J33,0) -> 4 | M33: 0 | N33: =M33 -> 0 | O33: =K33-N33 -> 4
D34: BQJ5040TSLEV | E34: 2 | F34: 2.1054 | G34: =E34*F34 -> 4.2108 | H34: 2 | I34: 2.1054 | J34: =H34*I34 -> 4.2108
B35: 5 | C35: 北京汽车股份有限公司 | D35: 小计 | E35: =SUM(E36:E80) -> 1794 | G35: 2906.301 | H35: 1707 | J35: 2767.747 | K35: =ROUND(J35,0) -> 2768 | M35: 0 | N35: =M35 -> 0 | O35: =K35-N35 -> 2768
D36: BJ7000C5D3-BEV | E36: 32 | F36: 1.4175 | G36: =E36*F36 -> 45.36 | H36: 30 | I36: 1.4175 | J36: =H36*I36 -> 42.525 | L36: 核减2辆，原因为：需进一步核实后予以清算
D37: BJ7000C5D3-BEV | E37: 1003 | F37: 1.575 | G37: 1579.725 | H37: 937 | I37: 1.575 | J37: 1475.775 | L37: 核减66辆，原因为：车辆注册登记信息有误,需进一步核实后予以清算
D38: BJ7000C5D3-BEV | E38: 2 | F38: 2.025 | G38: 4.05 | H38: 2 | I38: 2.025 | J38: 4.05
D39: BJ7000C5D3-BEV | E39: 1 | F39: 2.25 | G39: 2.25 | H39: 1 | I39: 2.25 | J39: 2.25
D40: BJ7000C5D5-BEV | E40: 1 | F40: 1.575 | G40: 1.575 | H40: 1 | I40: 1.575 | J40: 1.575
D41: BJ7000C5D7-BEV | E41: 1 | F41: 1.575 | G41: 1.575 | H41: 0 | I41: 0 | J41: 0 | L41: 核减1辆，原因为：需进一步核实后予以清算
D42: BJ7000C5D7-BEV | E42: 5 | F42: 1.75 | G42: 8.75 | H42: 5 | I42: 1.75 | J42: 8.75
D43: BJ7003U3D2-BEV | E43: 1 | F43: 1.134 | G43: 1.134 | H43: 1 | I43: 1.134 | J43: 1.134
D44: BJ7003U3D2-BEV | E44: 2 | F44: 1.26 | G44: 2.52 | H44: 2 | I44: 1.26 | J44: 2.52
D45: BJ7003U3D2-BEV | E45: 7 | F45: 1.575 | G45: 11.025 | H45: 5 | I45: 1.575 | J45: 7.875 | L45: 核减2辆，原因为：需进一步核实后予以清算
D46: BJ7003U3D3-BEV | E46: 6 | F46: 1.134 | G46: 6.804 | H46: 5 | I46: 1.134 | J46: 5.67 | L46: 核减1辆，原因为：需进一步核实后予以清算
D47: BJ7003U3D3-BEV | E47: 4 | F47: 1.575 | G47: 6.3 | H47: 3 | I47: 1.575 | J47: 4.725 | L47: 核减1辆，原因为：需进一步核实后予以清算
D48: BJ7000C5D2-BEV | E48: 10 | F48: 1.575 | G48: 15.75 | H48: 10 | I48: 1.575 | J48: 15.75
D49: BJ7000C5D2-BEV | E49: 17 | F49: 2.025 | G49: 34.425 | H49: 17 | I49: 2.025 | J49: 34.425
D50: BJ7000C5D2-BEV | E50: 8 | F50: 2.25 | G50: 18 | H50: 8 | I50: 2.25 | J50: 18
D51: BJ7000C5D3-BEV | E51: 35 | F51: 1.4175 | G51: 49.6125 | H51: 35 | I51: 1.4175 | J51: 49.6125
D52: BJ7000C5D3-BEV | E52: 131 | F52: 1.575 | G52: 206.325 | H52: 131 | I52: 1.575 | J52: 206.325
D53: BJ7000C5D3-BEV | E53: 1 | F53: 1.575 | G53: 1.575 | H53: 0 | I53: 0 | J53: 0 | L53: 核减1辆，原因为：车辆注册登记信息有误
D54: BJ7000C5D3-BEV | E54: 80 | F54: 2.025 | G54: 162 | H54: 80 | I54: 2.025 | J54: 162
D55: BJ7000C5D3-BEV | E55: 1 | F55: 2.025 | G55: 2.025 | H55: 0 | I55: 0 | J55: 0 | L55: 核减1辆，原因为：车辆注册登记信息有误
D56: BJ7000C5D3-BEV | E56: 2 | F56: 2.25 | G56: 4.5 | H56: 2 | I56: 2.25 | J56: 4.5
D57: BJ7000C5D4-BEV | E57: 1 | F57: 1.575 | G57: 1.575 | H57: 1 | I57: 1.575 | J57: 1.575
D58: BJ7000C5D5-BEV | E58: 1 | F58: 1.4175 | G58: 1.4175 | H58: 1 | I58: 1.4175 | J58: 1.4175
D59: BJ7000C5D5-BEV | E59: 9 | F59: 1.575 | G59: 14.175 | H59: 9 | I59: 1.575 | J59: 14.175
D60: BJ7000C5D5-BEV | E60: 1 | F60: 2.025 | G60: 2.025 | H60: 0 | I60: 0 | J60: 0 | L60: 核减1辆，原因为：车辆注册登记信息有误
D61: BJ7000C5D7-BEV | E61: 30 | F61: 1.575 | G61: 47.25 | H61: 30 | I61: 1.575 | J61: 47.25
D62: BJ7000C5D7-BEV | E62: 86 | F62: 1.75 | G62: 150.5 | H62: 86 | I62: 1.75 | J62: 150.5
D63: BJ7000C5D7-BEV | E63: 2 | F63: 1.75 | G63: 3.5 | H63: 0 | I63: 0 | J63: 0 | L63: 核减2辆，原因为：车辆注册登记信息有误
D64: BJ7000C5D7-BEV | E64: 17 | F64: 2.25 | G64: 38.25 | H64: 17 | I64: 2.25 | J64: 38.25
D65: BJ7000C5D7-BEV | E65: 1 | F65: 2.25 | G65: 2.25 | H65: 0 | I65: 0 | J65: 0 | L65: 核减1辆，原因为：车辆注册登记信息有误
D66: BJ7000C5D7-BEV | E66: 2 | F66: 2.5 | G66: 5 | H66: 2 | I66: 2.5 | J66: 5
D67: BJ7000C5DA-BEV | E67: 1 | F67: 1.75 | G67: 1.75 | H67: 1 | I67: 1.75 | J67: 1.75
D68: BJ7001U5E2-BEV | E68: 1 | F68: 1.26 | G68: 1.26 | H68: 1 | I68: 1.26 | J68: 1.26
D69: BJ7001U5E2-BEV | E69: 8 | F69: 1.62 | G69: 12.96 | H69: 8 | I69: 1.62 | J69: 12.96
D70: BJ7001U5E2-BEV | E70: 2 | F70: 2.25 | G70: 4.5 | H70: 2 | I70: 2.25 | J70: 4.5
D71: BJ7003U3D2-BEV | E71: 2 | F71: 1.134 | G71: 2.268 | H71: 2 | I71: 1.134 | J71: 2.268
D72: BJ7003U3D2-BEV | E72: 1 | F72: 1.26 | G72: 1.26 | H72: 1 | I72: 1.26 | J72: 1.26
D73: BJ7003U3D2-BEV | E73: 3 | F73: 1.575 | G73: 4.725 | H73: 3 | I73: 1.575 | J73: 4.725
D74: BJ7003U3D2-BEV | E74: 214 | F74: 1.62 | G74: 346.68 | H74: 214 | I74: 1.62 | J74: 346.68
D75: BJ7003U3D2-BEV | E75: 6 | F75: 1.62 | G75: 9.72 | H75: 0 | I75: 0 | J75: 0 | L75: 核减6辆，原因为：车辆注册登记信息有误
D76: BJ7003U3D2-BEV | E76: 1 | F76: 2.25 | G76: 2.25 | H76: 1 | I76: 2.25 | J76: 2.25
D77: BJ7003U3D3-BEV | E77: 3 | F77: 1.26 | G77: 3.78 | H77: 3 | I77: 1.26 | J77: 3.78
D78: BJ7003U3D3-BEV | E78: 7 | F78: 1.575 | G78: 11.025 | H78: 7 | I78: 1.575 | J78: 11.025
D79: BJ7003U3D3-BEV | E79: 43 | F79: 1.62 | G79: 69.66 | H79: 43 | I79: 1.62 | J79: 69.66
D80: BJ7003U3D3-BEV | E80: 2 | F80: 1.62 | G80: 3.24 | H80: 0 | I80: 0 | J80: 0 | L80: 核减2辆，原因为：车辆注册登记信息有误
B81: 6 | C81: 北京汽车制造厂有限公司 | D81: 小计 | E81: =SUM(E82) -> 42 | G81: 57.1536 | H81: 42 | J81: 57.1536 | K81: =ROUND(J81,0) -> 57 | M81: 0 | N81: =M81 -> 0 | O81: =K81-N81 -> 57
D82: BAW5030XXY6Z541BEV | E82: 42 | F82: 1.3608 | G82: =E82*F82 -> 57.1536 | H82: 42 | I82: 1.3608 | J82: =H82*I82 -> 57.1536
B83: 7 | C83: 北京现代汽车有限公司 | D83: 小计 | E83: =SUM(E84:E115) -> 207 | G83: 223.93 | H83: 170 | J83: 167.3725 | K83: =ROUND(J83,0) -> 167 | M83: 0 | N83: =M83 -> 0 | O83: =K83-N83 -> 167
D84: BH7000BEVCAA | E84: 31 | F84: 1.4175 | G84: =E84*F84 -> 43.9425 | H84: 31 | I84: 1.4175 | J84: =H84*I84 -> 43.9425
D85: BH7000BEVCAA | E85: 6 | F85: 1.575 | G85: 9.45 | H85: 5 | I85: 1.575 | J85: 7.875 | L85: 核减1辆，原因为：重复申报
D86: BH7000BEVCAA | E86: 9 | F86: 1.7325 | G86: 15.5925 | H86: 9 | I86: 1.7325 | J86: 15.5925
D87: BH7000BEVCAA | E87: 10 | F87: 2.025 | G87: 20.25 | H87: 0 | I87: 0 | J87: 0 | L87: 核减10辆，原因为：重复申报,需进一步核实后予以清算
D88: BH7000BEVCAA | E88: 2 | F88: 2.475 | G88: 4.95 | H88: 0 | I88: 0 | J88: 0 | L88: 核减2辆，原因为：重复申报
D89: BH7000BEVSCA | E89: 5 | F89: 1.4175 | G89: 7.0875 | H89: 5 | I89: 1.4175 | J89: 7.0875
D90: BH7000BEVSCA | E90: 5 | F90: 1.575 | G90: 7.875 | H90: 5 | I90: 1.575 | J90: 7.875
D91: BH7000BEVSCA | E91: 9 | F91: 2.025 | G91: 18.225 | H91: 3 | I91: 2.025 | J91: 6.075 | L91: 核减6辆，原因为：重复申报
D92: BH7000BEVSCA | E92: 4 | F92: 2.25 | G92: 9 | H92: 0 | I92: 0 | J92: 0 | L92: 核减4辆，原因为：重复申报,需进一步核实后予以清算
D93: BH7160PHEVCBAS | E93: 4 | F93: 0.595 | G93: 2.38 | H93: 4 | I93: 0.595 | J93: 2.38
D94: BH7160PHEVCBAS | E94: 14 | F94: 0.7 | G94: 9.8 | H94: 10 | I94: 0.7 | J94: 7 | L94: 核减4辆，原因为：重复申报,需进一步核实后予以清算
D95: BH7160PHEVCBAS | E95: 1 | F95: 0.85 | G95: 0.85 | H95: 0 | I95: 0 | J95: 0 | L95: 核减1辆，原因为：重复申报
D96: BH7160PHEVCBAS | E96: 2 | F96: 1 | G96: 2 | H96: 0 | I96: 0 | J96: 0 | L96: 核减2辆，原因为：重复申报
D97: BH7200PHEVRAS | E97: 1 | F97: 0.425 | G97: 0.425 | H97: 1 | I97: 0.425 | J97: 0.425
D98: BH7200PHEVRAV | E98: 5 | F98: 0.2975 | G98: 1.4875 | H98: 5 | I98: 0.2975 | J98: 1.4875
D99: BH7200PHEVRAV | E99: 8 | F99: 0.35 | G99: 2.8 | H99: 8 | I99: 0.35 | J99: 2.8
D100: BH7200PHEVRAV | E100: 1 | F100: 0.425 | G100: 0.425 | H100: 0 | I100: 0 | J100: 0 | L100: 核减1辆，原因为：需进一步核实后予以清算
D101: BH7201PHEVRAS | E101: 7 | F101: 0.2975 | G101: 2.0825 | H101: 7 | I101: 0.2975 | J101: 2.0825
D102: BH7201PHEVRAS | E102: 50 | F102: 0.35 | G102: 17.5 | H102: 47 | I102: 0.35 | J102: 16.45 | L102: 核减3辆，原因为：重复申报
D103: BH7201PHEVRAS | E103: 2 | F103: 0.425 | G103: 0.85 | H103: 0 | I103: 0 | J103: 0 | L103: 核减2辆，原因为：重复申报,需进一步核实后予以清算
D104: BH7201PHEVRAS | E104: 1 | F104: 0.5 | G104: 0.5 | H104: 0 | I104: 0 | J104: 0 | L104: 核减1辆，原因为：重复申报
D105: BH7000BEVCAA | E105: 1 | F105: 1.7325 | G105: 1.7325 | H105: 1 | I105: 1.575 | J105: 1.575
D106: BH7000BEVCAA | E106: 8 | F106: 2.025 | G106: 16.2 | H106: 8 | I106: 2.025 | J106: 16.2
D107: BH7000BEVCAA | E107: 2 | F107: 2.475 | G107: 4.95 | H107: 2 | I107: 2.475 | J107: 4.95
D108: BH7000BEVSCA | E108: 6 | F108: 2.025 | G108: 12.15 | H108: 6 | I108: 2.025 | J108: 12.15
D109: BH7000BEVSCA | E109: 2 | F109: 2.25 | G109: 4.5 | H109: 2 | I109: 2.25 | J109: 4.5
D110: BH7160PHEVCBAS | E110: 3 | F110: 0.7 | G110: 2.1 | H110: 3 | I110: 0.7 | J110: 2.1
D111: BH7160PHEVCBAS | E111: 1 | F111: 0.85 | G111: 0.85 | H111: 1 | I111: 0.85 | J111: 0.85
D112: BH7160PHEVCBAS | E112: 2 | F112: 1 | G112: 2 | H112: 2 | I112: 1 | J112: 2
D113: BH7201PHEVRAS | E113: 3 | F113: 0.35 | G113: 1.05 | H113: 3 | I113: 0.35 | J113: 1.05
D114: BH7201PHEVRAS | E114: 1 | F114: 0.425 | G114: 0.425 | H114: 1 | I114: 0.425 | J114: 0.425
D115: BH7201PHEVRAS | E115: 1 | F115: 0.5 | G115: 0.5 | H115: 1 | I115: 0.5 | J115: 0.5
B116: 8 | C116: 北京新能源汽车股份有限公司 | D116: 小计 | E116: =SUM(E117:E138) -> 627 | G116: 875.866 | H116: 569 | J116: 799.7618 | K116: =ROUND(J116,0) -> 800 | M116: 0 | N116: =M116 -> 0 | O116: =K116-N116 -> 800
D117: BJ7000CTD-BEV | E117: 6 | F117: 1.575 | G117: =E117*F117 -> 9.45 | H117: 0 | I117: 0 | J117: =H117*I117 -> 0 | L117: 核减6辆，原因为：现场核查不通过
D118: BJ7001BPHD-BEV | E118: 5 | F118: 1.377 | G118: 6.885 | H118: 0 | I118: 0 | J118: 0 | L118: 核减5辆，原因为：未按有关要求上传车辆运行数据,现场核查不通过,需进一步核实后予以清算
D119: BJ7001BPHF-BEV | E119: 2 | F119: 0.8164 | G119: 1.6328 | H119: 0 | I119: 0 | J119: 0 | L119: 核减2辆，原因为：现场核查不通过
D120: BJ7001BPHF-BEV | E120: 34 | F120: 1.1664 | G120: 39.6576 | H120: 0 | I120: 0 | J120: 0 | L120: 核减34辆，原因为：未按有关要求上传车辆运行数据,现场核查不通过
D121: BJ7001BPHF-BEV | E121: 2 | F121: 1.62 | G121: 3.24 | H121: 0 | I121: 0 | J121: 0 | L121: 核减2辆，原因为：现场核查不通过
D122: BJ7000C5ED-BEV | E122: 1 | F122: 1.134 | G122: 1.134 | H122: 1 | I122: 1.134 | J122: 1.134
D123: BJ7000CTD-BEV | E123: 2 | F123: 1.575 | G123: 3.15 | H123: 2 | I123: 1.575 | J123: 3.15
D124: BJ7000CTD-BEV | E124: 2 | F124: 2.025 | G124: 4.05 | H124: 2 | I124: 2.025 | J124: 4.05
D125: BJ7000USD1-BEV | E125: 3 | F125: 1.75 | G125: 5.25 | H125: 3 | I125: 1.75 | J125: 5.25
D126: BJ7000USD1-BEV | E126: 55 | F126: 2.25 | G126: 123.75 | H126: 55 | I126: 2.25 | J126: 123.75
D127: BJ7000USD1-BEV | E127: 3 | F127: 2.25 | G127: 6.75 | H127: 0 | I127: 0 | J127: 0 | L127: 核减3辆，原因为：车辆注册登记信息有误
D128: BJ7000USD1-BEV | E128: 5 | F128: 2.5 | G128: 12.5 | H128: 5 | I128: 2.5 | J128: 12.5
D129: BJ7000USD2-BEV | E129: 1 | F129: 1.4175 | G129: 1.4175 | H129: 1 | I129: 1.4175 | J129: 1.4175
D130: BJ7000USD2-BEV | E130: 8 | F130: 2.025 | G130: 16.2 | H130: 8 | I130: 2.025 | J130: 16.2
D131: BJ7000USD2-BEV | E131: 1 | F131: 2.025 | G131: 2.025 | H131: 0 | I131: 0 | J131: 0 | L131: 核减1辆，原因为：车辆注册登记信息有误
D132: BJ7000USD-BEV | E132: 1 | F132: 2.025 | G132: 2.025 | H132: 1 | I132: 2.025 | J132: 2.025
D133: BJ7001BPHD-BEV | E133: 262 | F133: 1.377 | G133: 360.774 | H133: 262 | I133: 1.377 | J133: 360.774
D134: BJ7001BPHD-BEV | E134: 3 | F134: 1.377 | G134: 4.131 | H134: 0 | I134: 0 | J134: 0 | L134: 核减3辆，原因为：车辆注册登记信息有误
D135: BJ7001BPHD-BEV | E135: 3 | F135: 1.5147 | G135: 4.5441 | H135: 3 | I135: 1.5147 | J135: 4.5441
D136: BJ7001BPHF-BEV | E136: 223 | F136: 1.1664 | G136: 260.1072 | H136: 223 | I136: 1.1664 | J136: 260.1072
D137: BJ7001BPHF-BEV | E137: 2 | F137: 1.1664 | G137: 2.3328 | H137: 0 | I137: 0 | J137: 0 | L137: 核减2辆，原因为：车辆注册登记信息有误
D138: BJ7001BPHF-BEV | E138: 3 | F138: 1.62 | G138: 4.86 | H138: 3 | I138: 1.62 | J138: 4.86
A139: 天津市 | B139: 合计 | E139: =SUM(E140:E160)/2 -> 1091 | G139: 5920.63 | H139: 1020 | J139: 5689.54 | K139: =SUM(K140:K149) -> 5690 | M139: =SUM(M140:M149) -> 0 | N139: =SUM(N140:N149) -> 0 | O139: =SUM(O140:O149) -> 5690
B140: 1 | C140: 天津比亚迪汽车有限公司 | D140: 小计 | E140: =SUM(E141:E145) -> 301 | G140: 2147.85 | H140: 269 | J140: 1956.15 | K140: =ROUND(J140,0) -> 1956 | M140: 0 | N140: =M140 -> 0 | O140: =K140-N140 -> 1956
D141: TJK6100GCLEV | E141: 160 | F141: 9 | G141: =E141*F141 -> 1440 | H141: 153 | I141: 9 | J141: =H141*I141 -> 1377 | L141: 核减7辆，原因为：车辆注册日期早于推荐目录生效日期,不符合行驶里程数要求
D142: TJK6110CBDEV | E142: 2 | F142: 7.2 | G142: =E142*F142 -> 14.4 | H142: 2 | I142: 7.2 | J142: =H142*I142 -> 14.4
D143: TJK6120GCLEV | E143: 16 | F143: 3.6 | G143: =E143*F143 -> 57.6 | H143: 8 | I143: 3.6 | J143: =H143*I143 -> 28.8 | L143: 核减8辆，原因为：不符合行驶里程数要求
D144: TJK6120GCLEV | E144: 12 | F144: 7.2 | G144: =E144*F144 -> 86.4 | H144: 5 | I144: 7.2 | J144: =H144*I144 -> 36 | L144: 核减7辆，原因为：不符合行驶里程数要求
D145: TJK6850GBDEV | E145: 111 | F145: 4.95 | G145: =E145*F145 -> 549.45 | H145: 101 | I145: 4.95 | J145: =H145*I145 -> 499.95 | L145: 核减10辆，原因为：车辆注册日期早于推荐目录生效日期,不符合行驶里程数要求
B146: 2 | C146: 天津广通汽车有限公司 | D146: 小计 | E146: =SUM(E147:E148) -> 711 | G146: 3693.8 | H146: 711 | J146: 3693.8 | K146: =ROUND(J146,0) -> 3694 | M146: 0 | N146: =M146 -> 0 | O146: =K146-N146 -> 3694
D147: TJR6105BEVBT3 | E147: 710 | F147: 5.2 | G147: =E147*F147 -> 3692 | H147: 710 | I147: 5.2 | J147: =H147*I147 -> 3692
D148: TJR6680BEVBT1 | E148: 1 | F148: 1.8 | G148: =E148*F148 -> 1.8 | H148: 1 | I148: 1.8 | J148: =H148*I148 -> 1.8
B149: 3 | C149: 一汽丰田汽车有限公司 | D149: 小计 | E149: =SUM(E150:E160) -> 79 | G149: 78.98 | H149: 40 | J149: 39.59 | K149: =ROUND(J149,0) -> 40 | M149: 0 | N149: =M149 -> 0 | O149: =K149-N149 -> 40
D150: TV7001BEV | E150: 6 | F150: 1.8 | G150: =E150*F150 -> 10.8 | H150: 0 | I150: 0 | J150: =H150*I150 -> 0 | L150: 核减6辆，原因为：重复申报,需进一步核实后予以清算
D151: TV7186HEV6 | E151: 2 | F151: 0.595 | G151: 1.19 | H151: 0 | I151: 0 | J151: 0 | L151: 核减2辆，原因为：重复申报,车辆注册登记信息有误
D152: TV7186HEV6 | E152: 1 | F152: 0.7 | G152: 0.7 | H152: 1 | I152: 0.7 | J152: 0.7
D153: TV7186HEV6 | E153: 25 | F153: 0.85 | G153: 21.25 | H153: 1 | I153: 0.85 | J153: 0.85 | L153: 核减24辆，原因为：重复申报,车辆注册登记信息有误,需进一步核实后予以清算
D154: TV7186HEV6 | E154: 9 | F154: 1 | G154: 9 | H154: 2 | I154: 1 | J154: 2 | L154: 核减7辆，原因为：重复申报
D155: TV7186HEV6 | E155: 2 | F155: 0.595 | G155: 1.19 | H155: 2 | I155: 0.595 | J155: 1.19
D156: TV7186HEV6 | E156: 7 | F156: 0.85 | G156: 5.95 | H156: 7 | I156: 0.85 | J156: 5.95
D157: TV7186HEV6 | E157: 6 | F157: 1 | G157: 6 | H157: 6 | I157: 1 | J157: 6
D158: TV7001BEV | E158: 5 | F158: 1.8 | G158: 9 | H158: 5 | I158: 1.8 | J158: 9
D159: TV7186HEV6 | E159: 14 | F159: 0.85 | G159: 11.9 | H159: 14 | I159: 0.85 | J159: 11.9
D160: TV7186HEV6 | E160: 2 | F160: 1 | G160: 2 | H160: 2 | I160: 1 | J160: 2
A161: 河北省 | B161: 合计 | E161: =SUM(E162:E196)/2 -> 703 | G161: 1067.9133 | H161: 696 | J161: 1057.9913 | K161: =SUM(K162:K195) -> 1058 | M161: =SUM(M162:M195) -> 7381 | N161: =SUM(N162:N195) -> 969 | O161: =SUM(O162:O195) -> 89
B162: 1 | C162: 长城汽车股份有限公司 | D162: 小计 | E162: =SUM(E163:E192) -> 605 | G162: 961.3011 | H162: 599 | J162: 952.9991 | K162: =ROUND(J162,0) -> 953 | M162: 5990 | N162: =K162 -> 953 | O162: =K162-N162 -> 0
D163: CC1032PA03BEV | E163: 6 | F163: 1.8 | G163: =E163*F163 -> 10.8 | H163: 6 | I163: 1.8 | J163: =H163*I163 -> 10.8
D164: CC5032XXYPA03BEV | E164: 3 | F164: 1.8 | G164: 5.4 | H164: 3 | I164: 1.8 | J164: 5.4
D165: CC7000ZM00CBEV | E165: 3 | F165: 1.134 | G165: 3.402 | H165: 0 | I165: 0 | J165: 0 | L165: 核减3辆，原因为：车辆注册登记信息有误
D166: CC6483AD23BPHEV | E166: 2 | F166: 0.85 | G166: 1.7 | H166: 2 | I166: 0.85 | J166: 1.7
D167: CC6483AD23CPHEV | E167: 7 | F167: 0.85 | G167: 5.95 | H167: 7 | I167: 0.85 | J167: 5.95
D168: CC6483AD23CPHEV | E168: 4 | F168: 1 | G168: 4 | H168: 4 | I168: 1 | J168: 4
D169: CC7000BJ01CBEV | E169: 8 | F169: 2.025 | G169: 16.2 | H169: 8 | I169: 2.025 | J169: 16.2
D170: CC7000BJ02ABEV | E170: 1 | F170: 2.25 | G170: 2.25 | H170: 1 | I170: 2.25 | J170: 2.25
D171: CC7000ZM00ABEV | E171: 1 | F171: 1.44 | G171: 1.44 | H171: 1 | I171: 1.44 | J171: 1.44
D172: CC7000ZM00BEV | E172: 2 | F172: 1.8 | G172: 3.6 | H172: 2 | I172: 1.8 | J172: 3.6
D173: CC7000ZM00CBEV | E173: 228 | F173: 1.62 | G173: 369.36 | H173: 228 | I173: 1.62 | J173: 369.36
D174: CC7000ZM00CBEV | E174: 1 | F174: 1.62 | G174: 1.62 | H174: 0 | I174: 0 | J174: 0 | L174: 核减1辆，原因为：车辆注册登记信息有误
D175: CC7000ZM00CBEV | E175: 54 | F175: 1.8 | G175: 97.2 | H175: 54 | I175: 1.8 | J175: 97.2
D176: CC7000ZM00EBEV | E176: 16 | F176: 1.62 | G176: 25.92 | H176: 16 | I176: 1.62 | J176: 25.92
D177: CC7000ZM01BEV | E177: 1 | F177: 1.1052 | G177: 1.1052 | H177: 1 | I177: 1.1052 | J177: 1.1052
D178: CC7000ZM01BEV | E178: 2 | F178: 1.2157 | G178: 2.4314 | H178: 2 | I178: 1.2157 | J178: 2.4314
D179: CC7000ZM02CBEV | E179: 48 | F179: 1.425 | G179: 68.4 | H179: 48 | I179: 1.425 | J179: 68.4
D180: CC7000ZM02CBEV | E180: 9 | F180: 1.5675 | G180: 14.1075 | H180: 9 | I180: 1.5675 | J180: 14.1075
D181: CC7000ZM02DBEV | E181: 107 | F181: 1.48 | G181: 158.36 | H181: 107 | I181: 1.48 | J181: 158.36
D182: CC7000ZM02DBEV | E182: 1 | F182: 1.48 | G182: 1.48 | H182: 0 | I182: 0 | J182: 0 | L182: 核减1辆，原因为：车辆注册登记信息有误
D183: CC7000ZM05ABEV | E183: 5 | F183: 1.8 | G183: 9 | H183: 5 | I183: 1.8 | J183: 9
D184: CC7001CE03ABEV | E184: 6 | F184: 1.4175 | G184: 8.505 | H184: 6 | I184: 1.4175 | J184: 8.505
D185: CC7001CE03ABEV | E185: 1 | F185: 2.025 | G185: 2.025 | H185: 1 | I185: 2.025 | J185: 2.025
D186: CC7001CE03BEV | E186: 2 | F186: 1.4175 | G186: 2.835 | H186: 2 | I186: 1.4175 | J186: 2.835
D187: CC7001CE03BEV | E187: 1 | F187: 1.575 | G187: 1.575 | H187: 1 | I187: 1.575 | J187: 1.575
D188: CC7001CE03BEV | E188: 5 | F188: 2.025 | G188: 10.125 | H188: 5 | I188: 2.025 | J188: 10.125
D189: CC7001ZM00BBEV | E189: 13 | F189: 1.47 | G189: 19.11 | H189: 13 | I189: 1.47 | J189: 19.11
D190: CC7001ZM01BEV | E190: 50 | F190: 1.62 | G190: 81 | H190: 50 | I190: 1.62 | J190: 81
D191: CC7001ZM02CBEV | E191: 17 | F191: 1.8 | G191: 30.6 | H191: 17 | I191: 1.8 | J191: 30.6
D192: CC7001ZM02CBEV | E192: 1 | F192: 1.8 | G192: 1.8 | H192: 0 | I192: 0 | J192: 0 | L192: 核减1辆，原因为：车辆注册登记信息有误
B193: 2 | C193: 河北长安汽车有限公司 | D193: 小计 | E193: =SUM(E194) -> 11 | G193: 17.82 | H193: 10 | J193: 16.2 | K193: =ROUND(J193,0) -> 16 | M193: 1391 | N193: =K193 -> 16 | O193: =K193-N193 -> 0
D194: SC7002AACBEV | E194: 11 | F194: 1.62 | G194: =E194*F194 -> 17.82 | H194: 10 | I194: 1.62 | J194: =H194*I194 -> 16.2 | L194: 核减1辆，原因为：车辆注册登记信息有误
B195: 3 | C195: 河北中兴汽车制造有限公司 | D195: 小计 | E195: =SUM(E196) -> 87 | G195: 88.7922 | H195: 87 | J195: 88.7922 | K195: =ROUND(J195,0) -> 89 | M195: 0 | N195: =M195 -> 0 | O195: =K195-N195 -> 89
D196: BQ6460NYBEV | E196: 87 | F196: 1.0206 | G196: =E196*F196 -> 88.7922 | H196: 87 | I196: 1.0206 | J196: =H196*I196 -> 88.7922
A197: 山西省 | B197: 合计 | E197: =SUM(E198:E249)/2 -> 888 | G197: 3090.7583 | H197: 791 | J197: 2990.925 | K197: =SUM(K198:K214) -> 2991 | M197: =SUM(M198:M214) -> 6674 | N197: =SUM(N198:N214) -> 726 | O197: =SUM(O198:O214) -> 2265
B198: 1 | C198: 成都大运汽车集团有限公司 | D198: 小计 | E198: =SUM(E199:E209) -> 390 | G198: 1898.4923 | H198: 300 | J198: 1847.7907 | K198: =ROUND(J198,0) -> 1848 | M198: 0 | N198: =M198 -> 0 | O198: =K198-N198 -> 1848
D199: CGC4250BEV1Z2 | E199: 1 | F199: 5.5 | G199: =E199*F199 -> 5.5 | H199: 1 | I199: 5.5 | J199: =H199*I199 -> 5.5
D200: CGC4250BEV1Z4 | E200: 3 | F200: 5 | G200: 15 | H200: 3 | I200: 5 | J200: 15
... 1359 more rows
